bitfinex-derivatives/quotes_ETHF0:USTF0_20250110
["timestamp","ask_amount","ask_price","bid_price","bid_amount"]
[1736494017008,1.87773471,3280.9,3280.8,40.8]
[1736494017214,1.87773471,3280.9,3280.8,0.30483]
[1736494019811,1.87773471,3280.9,3280.5,40.8]
[1736494020011,1.87773471,3280.6,3280.5,41.10486]
[1736494020207,1.87773471,3280.6,3280.5,40.8]
[1736494020622,1.87773471,3280.6,3280.5,41.10486]
[1736494027914,0.4312,3280.8,3280.5,40.8]
[1736494028112,0.4312,3280.8,3280.7,0.30484]
[1736494028621,2.30963471,3281.2,3280.6,0.4458]
[1736494028812,2.30963471,3281.2,3280.6,0.9227]
[1736494029018,2.30963471,3281.2,3281.1,0.30481]
[1736494029418,0.468,3281.3,3281.2,0.3048]
[1736494030115,1.87773471,3281.5,3281.0,3.2078]
[1736494030317,0.468,3281.4,3281.2,0.30479]
[1736494030519,0.468,3281.4,3281.3,0.30479]
[1736494030715,0.468,3281.4,3281.0,3.2078]
[1736494030923,0.468,3281.4,3281.2,0.30479]
[1736494031124,1.87773471,3281.5,3281.0,3.2078]
[1736494031324,1.87773471,3281.5,3281.4,0.30478]
[1736494031725,2.32083471,3281.5,3281.4,0.30478]
[1736494032720,0.4431,3281.5,3281.0,3.2078]
[1736494032927,0.4431,3281.5,3281.4,0.30478]
[1736494035621,0.4431,3281.5,3281.0,3.2078]
[1736494035822,1.87773471,3281.4,3281.3,0.30478]
[1736494036024,1.87773471,3281.4,3281.0,3.2078]
[1736494036226,1.87773471,3281.4,3281.3,0.30479]
[1736494037322,0.4431,3281.5,3281.0,3.2078]
[1736494037529,3.2078,3281.6,3281.5,0.30477]
[1736494038028,3.2078,3281.6,3281.5,41.10477]
[1736494038221,6.45643471,3282.3,3281.5,44.0078]
[1736494038427,7.68543471,3282.3,3282.2,0.3047]
[1736494038621,7.68543471,3282.3,3281.6,0.4352]
[1736494038622,7.68543471,3282.3,3282.1,0.30471]
[1736494038821,0.30471,3282.2,3281.7,0.30474]
[1736494039024,1.87773471,3282.0,3281.7,0.30474]
[1736494039422,1.87773471,3282.0,3281.8,0.30473]
[1736494039631,1.87773471,3282.0,3281.7,0.30475]
[1736494039825,1.87773471,3282.0,3281.5,40.8]
[1736494040033,1.87773471,3281.7,3281.4,0.30478]
[1736494040232,0.444,3281.6,3281.4,0.30478]
[1736494040725,0.444,3281.6,3281.5,0.30477]
[1736494041230,0.444,3281.6,3281.2,0.4424]
[1736494041231,0.444,3281.6,3281.4,0.30477]
[1736494042321,0.444,3281.6,3281.5,0.30477]
[1736494043132,0.444,3281.6,3281.2,0.4424]
[1736494043429,1.87773471,3281.4,3281.2,0.4424]
[1736494043627,1.87773471,3281.4,3281.3,0.30479]
[1736494044626,2.1251,3281.6,3281.5,0.30477]
[1736494044831,2.1251,3281.6,3281.2,41.2424]
[1736494045026,2.1251,3281.6,3281.5,0.30477]
[1736494045228,1.673,3281.6,3281.5,0.30477]
[1736494045535,1.673,3281.6,3281.4,0.30477]
[1736494046925,1.673,3281.6,3281.5,0.30477]
[1736494047326,1.229,3281.6,3281.5,0.30477]
[1736494047927,0.4364,3281.8,3281.2,41.2424]
[1736494048131,0.4364,3281.8,3281.7,0.30475]
[1736494048334,0.4364,3281.8,3281.2,41.2424]
[1736494048335,2.31413471,3281.8,3281.3,0.30479]
[1736494048535,1.87773471,3281.5,3281.2,41.2424]
[1736494049137,2.18251471,3281.5,3281.2,0.74719]
[1736494049326,2.18251471,3281.5,3281.3,0.30478]
[1736494049327,1.87773471,3281.5,3281.3,0.30478]
[1736494050036,3.10673471,3281.5,3281.3,0.30478]
[1736494050239,3.10673471,3281.5,3281.1,44.0078]
[1736494050429,6.61930471,3281.5,3281.2,0.30479]
[1736494050732,3.2078,3281.5,3281.0,0.4583]
[1736494051039,2.18248471,3281.8,3281.4,0.30478]
[1736494051537,1.87773471,3281.8,3281.1,44.0078]
[1736494052236,1.87773471,3281.8,3281.7,0.30475]
[1736494052733,1.87773471,3281.8,3281.1,44.0078]
[1736494052937,1.87773471,3281.8,3281.6,0.30476]
[1736494053334,1.87773471,3281.8,3281.5,0.30476]
[1736494053836,1.87773471,3281.8,3281.2,0.30479]
[1736494054036,1.87773471,3281.3,3281.2,0.30479]
[1736494055435,1.87773471,3281.3,3281.1,3.2078]
[1736494055436,1.87773471,3281.3,3281.0,0.4583]
[1736494055642,0.3048,3281.2,3280.9,0.30482]
[1736494055938,2.18256471,3280.9,3280.6,0.30485]
[1736494056333,0.4616,3280.8,3280.7,0.30484]
[1736494059339,0.935,3280.8,3280.7,0.30484]
[1736494062329,0.935,3280.8,3280.5,40.8]
[1736494062529,1.87773471,3280.6,3280.5,40.8]
[1736494062736,1.87773471,3280.6,3280.4,3.2078]
[1736494062942,0.30487,3280.5,3280.2,0.30489]
[1736494063238,1.87773471,3280.3,3280.2,0.30489]
[1736494063743,2.34853471,3280.3,3280.2,0.30489]
[1736494065437,2.34853471,3280.3,3280.1,0.77612383]
[1736494065636,0.8882,3280.2,3280.1,0.77612383]
[1736494065837,0.8882,3280.2,3280.0,3.5127]
[1736494066039,0.8882,3280.2,3280.1,0.3049]
[1736494069944,0.8882,3280.2,3280.0,3.2078]
[1736494070739,1.19308,3280.2,3280.0,3.2078]
[1736494070941,0.8882,3280.2,3280.0,3.2078]
[1736494072337,0.8882,3280.2,3280.1,0.30489]
[1736494072748,0.8882,3280.2,3280.0,3.2078]
[1736494073242,0.8882,3280.2,3280.0,3.51269]
[1736494073740,0.8882,3280.2,3280.0,3.2078]
[1736494074141,0.8882,3280.2,3280.0,3.51269]
[1736494074542,0.8882,3280.2,3280.0,3.2078]
[1736494074743,0.8882,3280.2,3280.0,3.51269]
[1736494075939,0.8882,3280.2,3280.0,3.2078]
[1736494076340,0.8882,3280.2,3280.0,3.51269]
[1736494077151,1.19308,3280.2,3280.0,3.2078]
[1736494077350,0.30489,3280.1,3279.6,0.4719]
[1736494077642,1.87773471,3279.9,3279.6,0.77683]
[1736494077845,1.87773471,3279.9,3279.2,3.2078]
[1736494078049,1.87773471,3279.5,3279.4,0.30494]
[1736494078249,1.87773471,3279.5,3279.3,0.4758]
[1736494078250,3.10673471,3279.5,3279.3,0.78075]
[1736494078549,0.4446,3279.4,3279.3,0.78075]
[1736494079344,3.10673471,3279.5,3279.4,0.30495]
[1736494080037,1.229,3279.5,3279.4,0.30495]
[1736494080247,1.6639,3280.0,3279.3,0.4758]
[1736494080440,1.229,3280.0,3279.9,0.3049]
[1736494080642,5.08553471,3280.1,3280.0,0.30489]
[1736494081246,1.87773471,3280.1,3280.0,0.30489]
[1736494083152,1.87773471,3280.1,3279.8,0.472]
[1736494083153,3.6427,3280.7,3279.8,0.472]
[1736494083354,3.2078,3280.7,3280.6,0.30484]
[1736494085548,3.2078,3280.7,3280.3,0.4373]
[1736494085752,1.87773471,3280.4,3280.3,0.4373]
[1736494085948,1.87773471,3280.4,3280.3,0.74217]
[1736494087943,1.87773471,3280.4,3280.2,3.2078]
[1736494088152,2.33183471,3280.4,3280.3,0.30487]
[1736494088745,1.87773471,3280.4,3280.3,0.30487]
[1736494089145,1.87647049,3280.4,3280.3,0.30487]
[1736494094747,1.3452,3280.5,3280.4,0.30486]
[1736494094951,3.22293471,3280.5,3280.4,0.30486]
[1736494095455,2.78273471,3280.5,3280.4,0.30486]
[1736494100855,1.87773471,3280.5,3280.4,0.30486]
[1736494103558,2.5972,3280.9,3280.4,0.30486]
[1736494103865,2.5972,3280.9,3280.8,0.30482]
[1736494103866,2.125,3280.9,3280.8,0.30482]
[1736494105064,0.896,3280.9,3280.8,0.30482]
[1736494105362,2.77373471,3280.9,3280.8,0.30482]
[1736494108364,1.87773471,3280.9,3280.8,0.30482]
[1736494108768,1.87773471,3281.2,3281.1,0.30479]
[1736494116674,3.75546942,3281.2,3280.9,0.30481]
[1736494116874,0.4606,3281.1,3280.6,3.2078]
[1736494117077,1.87773471,3280.7,3280.6,0.30483]
[1736494117683,1.87773471,3280.7,3280.2,44.0078]
[1736494117874,0.4606,3280.6,3280.4,0.30485]
[1736494118067,0.4606,3280.6,3280.2,40.8]
[1736494118272,0.4606,3280.6,3280.2,41.10488]
[1736494118273,1.87773471,3280.3,3280.2,41.10488]
[1736494118473,0.4606,3280.6,3280.2,40.8]
[1736494118670,2.33833471,3280.6,3280.5,0.30485]
[1736494121386,0.4606,3280.6,3280.5,0.30485]
[1736494121580,2.33833471,3280.6,3280.5,0.30485]
[1736494122874,1.87773471,3280.9,3280.8,0.30482]
[1736494123978,0.4324,3281.0,3280.9,0.30481]
[1736494124181,1.87773471,3281.2,3281.1,0.30479]
[1736494131078,1.87773471,3281.5,3281.4,0.30476]
[1736494135986,1.87773471,3281.5,3280.9,0.4644]
[1736494136190,1.87773471,3281.5,3280.8,44.0078]
[1736494136191,1.63616,3281.6,3281.3,0.30477]
[1736494136788,1.63616,3281.6,3281.4,0.30476]
[1736494137396,1.87773471,3281.5,3280.8,3.2078]
[1736494137602,1.87773471,3280.9,3280.8,3.51262]
[1736494138096,0.30477,3281.4,3280.8,44.0078]
[1736494138300,0.30477,3281.4,3281.2,0.30478]
[1736494138490,1.3314,3281.6,3280.8,44.0078]
[1736494138695,1.87773471,3281.0,3280.9,0.30481]
[1736494139096,1.3314,3281.6,3281.2,0.30478]
[1736494139298,1.87773471,3281.3,3281.2,0.30477]
[1736494140594,2.31203471,3281.6,3281.5,0.30476]
[1736494141101,2.31203471,3281.6,3281.5,41.10476]
[1736494142804,2.31203471,3281.6,3281.5,0.30476]
[1736494143905,0.4343,3281.6,3281.5,0.30476]
[1736494144196,2.31203471,3281.6,3281.5,0.30476]
[1736494145101,6.5623,3282.1,3282.0,0.30471]
[1736494145303,10.12823471,3282.1,3282.0,0.30471]
[1736494145699,10.43293471,3282.1,3281.8,0.30472]
[1736494145900,1.87773471,3281.9,3281.3,40.8]
[1736494146201,1.87773471,3281.5,3281.3,40.8]
[1736494146402,0.4619,3281.4,3281.3,41.10477]
[1736494146598,0.4619,3281.4,3281.3,0.30477]
[1736494146994,0.9162,3281.4,3281.3,0.30477]
[1736494151110,1.3839,3281.4,3281.3,0.30477]
[1736494153007,0.9296,3281.4,3281.3,0.30477]
[1736494153207,1.87773471,3281.5,3281.4,0.30476]
[1736494154612,1.87773471,3281.5,3281.4,3.51256]
[1736494155098,0.8769,3281.9,3281.4,3.2078]
[1736494155306,1.87773471,3281.6,3281.5,0.30476]
[1736494158010,1.87773471,3281.7,3281.4,3.2078]
[1736494158214,1.87773471,3281.7,3281.6,0.30475]
[1736494160113,2.18247471,3281.7,3281.4,3.51256]
[1736494163418,0.30475,3281.6,3281.4,3.51256]
[1736494164322,1.87773471,3281.7,3281.4,3.51256]
[1736494164522,2.18247471,3281.7,3281.4,3.51256]
[1736494165724,1.87773471,3281.7,3281.4,3.51256]
[1736494165911,1.87773471,3281.7,3281.0,3.2078]
[1736494166222,2.18253471,3281.0,3280.7,0.30482]
[1736494166425,1.6665,3280.9,3280.7,0.30482]
[1736494166617,2.0992,3280.9,3280.7,0.30482]
[1736494167515,2.0992,3280.9,3280.5,40.8]
[1736494167719,1.87773471,3280.6,3280.5,41.10485]
[1736494169826,2.18257471,3280.6,3280.5,40.8]
[1736494170018,1.87773471,3280.6,3280.5,41.10485]
[1736494170213,1.87773471,3280.6,3280.5,0.30485]
[1736494170412,1.87773471,3280.6,3280.4,0.4364]
[1736494170613,1.87773471,3280.6,3280.4,41.54126]
[1736494171227,2.18257471,3280.6,3280.4,41.2364]
[1736494171524,1.87773471,3280.6,3280.4,41.54125]
[1736494171917,1.87773471,3280.6,3280.4,41.54126]
[1736494172117,1.87773471,3280.6,3280.4,40.8]
[1736494172327,1.87773471,3280.6,3280.2,3.2078]
[1736494172520,1.87773471,3280.3,3280.2,3.51268]
[1736494172725,1.87773471,3280.3,3280.2,44.31268]
[1736494174025,1.87773471,3280.3,3280.2,3.51268]
[1736494175126,1.87773471,3280.3,3280.2,0.30488]
[1736494179327,1.87773471,3280.3,3280.2,41.10488]
[1736494180425,1.87773471,3280.3,3280.2,0.30488]
[1736494180732,1.87773471,3280.3,3280.1,0.30488]
[1736494180921,1.3509,3280.2,3279.6,40.8]
[1736494181126,1.87773471,3279.9,3279.8,0.30491]
[1736494182728,1.87773471,3279.9,3279.8,3.51271]
[1736494182923,2.31863471,3280.2,3280.1,0.30489]
[1736494183129,1.87773471,3280.2,3280.1,0.30489]
[1736494184331,1.87773471,3280.5,3279.8,3.2078]
[1736494184632,1.87773471,3280.5,3280.4,0.30486]
[1736494185631,0.24137203,3281.6,3280.4,0.30486]
[1736494185632,3.75602465,3282.2,3280.4,1.87773471]
[1736494185929,1.87773471,3282.6,3282.5,0.30466]
[1736494186131,0.4341,3282.9,3282.7,0.30464]
[1736494186435,0.4341,3282.9,3282.8,0.30463]
[1736494186733,0.437,3283.2,3283.1,0.30461]
[1736494187233,0.437,3283.2,3282.9,3.2078]
[1736494187440,0.437,3283.2,3283.0,0.30461]
[1736494188724,0.437,3283.2,3282.9,3.2078]
[1736494188931,1.87773471,3283.0,3282.9,3.2078]
[1736494189143,1.87773471,3283.0,3282.9,3.51243]
[1736494189636,3.10573471,3283.0,3282.9,3.51243]
[1736494192941,3.10573471,3283.0,3282.9,3.2078]
[1736494194235,3.10573471,3283.0,3282.9,3.51242]
[1736494194441,3.10573471,3283.0,3282.9,3.2078]
[1736494195439,3.10573471,3283.0,3282.9,3.51242]
[1736494196040,0.30444,3285.0,3284.3,0.30449]
[1736494196232,0.96276195,3284.9,3284.5,0.30447]
[1736494196435,0.96276195,3284.9,3284.8,0.30445]
[1736494196436,0.9119,3284.9,3284.8,0.30445]
[1736494196635,0.9119,3284.9,3284.7,0.30446]
[1736494196939,3.2078,3285.3,3284.3,3.2078]
[1736494197139,6.31253471,3285.7,3284.8,0.30445]
[1736494197439,0.05084831,3285.6,3284.7,3.2078]
[1736494197635,0.05084831,3285.6,3284.9,0.30443]
[1736494198033,1.227,3285.5,3284.9,0.30443]
[1736494198233,5.08553471,3285.1,3284.7,3.2078]
[1736494198433,1.87773471,3284.8,3284.7,3.2078]
[1736494199343,1.87773471,3284.8,3284.1,3.2078]
[1736494199539,1.87773471,3284.8,3284.2,0.3045]
[1736494199739,1.87773471,3284.8,3284.1,3.2078]
[1736494199937,1.87773471,3284.5,3284.1,3.51231]
[1736494200639,1.87773471,3284.2,3283.7,3.2078]
[1736494200839,1.87773471,3283.9,3283.5,0.30457]
[1736494201036,1.87773471,3283.9,3283.5,0.30456]
[1736494201240,0.4688,3283.8,3283.3,3.2078]
[1736494201441,0.4688,3283.8,3283.6,0.30456]
[1736494201740,0.4688,3283.8,3283.5,0.30456]
[1736494203539,0.4688,3283.8,3283.4,0.30457]
[1736494204047,0.4688,3283.8,3283.5,0.30457]
[1736494204442,0.4688,3283.8,3283.3,3.2078]
[1736494204636,2.28104685,3283.7,3283.3,3.2078]
[1736494204840,0.30456,3283.6,3283.3,3.2078]
[1736494205143,0.30458,3283.4,3283.3,3.2078]
[1736494205344,2.911,3283.6,3282.9,3.2078]
[1736494205548,0.3046,3283.2,3282.9,3.2078]
[1736494205846,0.3046,3283.2,3282.1,0.30469]
[1736494205847,0.30464,3282.7,3282.1,0.30469]
[1736494206141,0.4708,3283.3,3281.9,3.2078]
[1736494206142,0.05088239,3283.5,3283.4,0.30458]
[1736494206741,0.4708,3284.6,3284.4,0.30448]
[1736494207144,0.4708,3284.6,3284.2,0.3045]
[1736494207341,0.4708,3284.6,3284.3,0.30449]
[1736494207546,1.24,3284.9,3284.5,3.2078]
[1736494208143,0.30447,3284.6,3284.1,3.2078]
[1736494208347,2.28104685,3284.8,3284.1,3.2078]
[1736494208646,2.28104685,3284.4,3284.1,3.2078]
[1736494208840,3.2078,3284.2,3282.9,3.2078]
[1736494209045,0.457,3284.5,3282.9,3.2078]
[1736494209046,3.2078,3283.7,3282.9,3.2078]
[1736494209545,3.2078,3283.7,3283.2,0.3046]
[1736494210248,3.51235,3283.7,3283.2,0.3046]
[1736494210949,3.2078,3283.7,3283.2,0.3046]
[1736494211550,1.24,3283.7,3282.9,3.2078]
[1736494211744,1.24,3283.7,3283.3,0.30458]
[1736494211946,1.24,3283.7,3283.3,3.2078]
[1736494212150,1.24,3283.7,3283.4,0.4384]
[1736494212342,1.24,3283.7,3283.3,3.2078]
[1736494212547,1.54455,3283.7,3283.3,3.2078]
[1736494213355,2.28104685,3283.5,3282.9,3.2078]
[1736494213555,0.30458,3283.4,3282.9,0.30462]
[1736494213756,5.79342685,3283.5,3283.0,0.30462]
[1736494214049,0.30458,3283.4,3282.9,0.30462]
[1736494214254,5.48884685,3283.5,3282.6,3.6462]
[1736494214443,5.48884685,3283.5,3283.1,0.3046]
[1736494214648,5.48884685,3283.5,3282.9,0.30462]
[1736494214649,0.30458,3283.4,3282.9,0.30462]
[1736494215048,3.2078,3284.8,3283.3,5.48884685]
[1736494215353,5.81785,3286.1,3284.7,0.30445]
[1736494215354,3.2078,3285.2,3284.7,0.30445]
[1736494215854,3.51222,3285.2,3284.6,0.30447]
[1736494216057,3.51222,3285.2,3284.7,0.30445]
[1736494216347,3.2078,3285.2,3284.3,40.8]
[1736494216552,3.51222,3285.2,3284.7,0.30445]
[1736494216750,0.30442,3285.1,3284.6,0.30446]
[1736494217151,0.30443,3285.0,3284.6,0.30446]
[1736494217656,1.306,3284.9,3284.4,0.30449]
[1736494217853,1.306,3284.9,3284.3,40.8]
[1736494218054,1.61045,3284.9,3284.4,0.30448]
[1736494218452,1.306,3284.9,3284.5,0.30447]
[1736494218652,1.306,3284.9,3284.7,0.30446]
[1736494219245,1.306,3284.9,3284.2,44.0078]
[1736494219451,1.306,3285.0,3284.8,0.30445]
[1736494219751,1.306,3285.1,3284.8,0.30445]
[1736494219948,1.306,3285.1,3284.3,0.9267]
[1736494220353,0.30443,3285.0,3284.5,0.30448]
[1736494220955,0.30445,3284.8,3284.3,0.30449]
[1736494221152,0.76065,3286.9,3284.9,0.5]
[1736494221452,3.2078,3286.6,3285.9,3.2078]
[1736494221749,2.28104685,3286.8,3285.5,3.2078]
[1736494221956,0.30429,3286.6,3285.5,3.2078]
[1736494222459,0.4331,3286.5,3285.9,3.2078]
[1736494222760,0.4331,3286.5,3286.3,0.3043]
[1736494222953,0.4331,3286.5,3285.9,3.2078]
[1736494223459,2.28104685,3286.4,3285.9,3.2078]
[1736494223653,3.58604685,3286.4,3286.0,0.30433]
[1736494223847,3.58604685,3286.4,3285.9,3.51214]
[1736494224055,3.58604685,3286.4,3286.0,0.30433]
[1736494224253,3.89034685,3286.4,3285.9,3.2078]
[1736494224453,3.58604685,3286.4,3285.9,3.2078]
[1736494224760,3.58604685,3286.4,3285.9,3.51214]
[1736494225555,3.58604685,3286.4,3285.9,3.2078]
[1736494225556,3.89034685,3286.4,3285.9,3.2078]
[1736494225756,3.89034685,3286.4,3285.9,3.51214]
[1736494225961,0.30433,3286.1,3285.5,3.51218]
[1736494226162,0.30434,3286.0,3285.5,3.2078]
[1736494226359,0.30434,3286.0,3284.7,2.87174685]
[1736494226360,2.28104685,3286.0,3285.1,3.2078]
[1736494226558,0.3044,3285.3,3284.7,3.51225]
[1736494226759,1.7684,3285.2,3284.7,3.51225]
[1736494227064,1.7684,3285.2,3284.7,3.2078]
[1736494227454,1.7684,3285.2,3284.8,0.30445]
[1736494228062,0.76082,3286.2,3284.8,0.30445]
[1736494228063,3.2078,3287.4,3285.6,4.34]
[1736494228263,3.2078,3287.4,3286.3,3.2078]
[1736494228456,0.05042544,3287.3,3286.7,3.2078]
[1736494228660,3.2078,3287.4,3286.8,0.30426]
[1736494228959,1.381,3287.3,3286.9,0.30425]
[1736494229462,1.381,3287.3,3286.7,3.2078]
[1736494229663,1.381,3287.3,3286.8,0.30425]
[1736494229858,1.381,3287.3,3286.7,3.2078]
[1736494229859,0.30422,3287.3,3286.7,3.51207]
[1736494230059,1.38,3287.2,3286.8,0.30426]
[1736494230464,1.38,3287.2,3286.7,3.51207]
[1736494230668,1.38,3287.2,3286.7,3.2078]
[1736494230863,1.38,3287.2,3286.7,3.51207]
[1736494231067,1.38,3287.2,3286.3,3.5121]
[1736494231267,0.30425,3287.0,3286.4,0.3043]
[1736494231671,0.30425,3286.9,3286.4,0.3043]
[1736494231971,0.30425,3287.0,3286.5,0.30429]
[1736494232173,1.38,3287.2,3286.3,3.2078]
[1736494232477,0.30601,3287.0,3286.4,0.3043]
[1736494232679,0.00176,3287.0,3286.4,0.3043]
[1736494232873,0.00176,3287.0,3286.3,3.2078]
[1736494233278,0.30601,3287.0,3286.4,0.3043]
[1736494233778,0.30601,3287.0,3286.5,0.30429]
[1736494234780,0.00176,3287.0,3286.4,0.3043]
[1736494234972,0.30426,3286.9,3286.4,0.3043]
[1736494235173,0.30601,3287.0,3286.5,0.30429]
[1736494235978,0.30425,3286.9,3286.3,3.2078]
[1736494236180,0.4736,3286.9,3286.3,3.2078]
[1736494236373,0.30428,3286.7,3286.3,3.2078]
[1736494236577,0.30431,3286.3,3285.8,3.65645]
[1736494236875,3.2078,3286.5,3285.8,3.2078]
[1736494237079,1.8234,3286.4,3285.8,3.2078]
[1736494237379,0.30431,3286.3,3285.8,3.2078]
[1736494237879,1.8234,3286.4,3285.8,3.2078]
[1736494237880,0.30432,3286.2,3285.8,3.2078]
[1736494238073,0.30431,3286.3,3285.8,3.2078]
[1736494238271,2.28104685,3286.5,3285.8,3.2078]
[1736494238471,0.00176,3287.0,3286.9,0.30425]
[1736494238677,0.00176,3287.0,3286.9,5.79309685]
[1736494239374,0.30657218,3288.0,3287.5,0.3042]
[1736494239578,0.00242218,3288.0,3287.7,3.2078]
[1736494239775,0.30417,3287.8,3287.7,3.2078]
[1736494239976,2.28346903,3288.0,3287.7,3.2078]
[1736494240182,0.30417,3287.9,3287.7,3.2078]
[1736494240570,1.38,3287.8,3287.7,3.2078]
[1736494241481,1.68417,3287.8,3287.7,3.2078]
[1736494241781,0.30421,3287.4,3287.3,3.2078]
[1736494242174,0.3042,3287.5,3287.3,3.2078]
[1736494242374,0.30421,3287.4,3287.3,3.2078]
[1736494242883,0.3042,3287.5,3287.3,3.2078]
[1736494243277,3.2078,3289.5,3287.4,3.04157685]
[1736494243586,3.2078,3289.5,3288.8,3.2078]
[1736494243587,0.05039877,3289.4,3288.8,3.2078]
[1736494243786,0.30404,3289.3,3288.8,3.2078]
[1736494243986,3.95472,3289.5,3288.9,0.30406]
[1736494244284,3.2078,3290.1,3289.4,3.2078]
[1736494244583,3.2078,3290.5,3289.9,3.51177]
[1736494245086,2.28104685,3290.4,3289.9,3.2078]
[1736494245382,1.436,3290.7,3289.4,3.2078]
[1736494245383,0.30399,3289.9,3289.4,3.2078]
[1736494245585,0.30393,3290.4,3289.8,3.2078]
[1736494245890,0.30392,3290.6,3289.9,0.30398]
[1736494246180,3.2078,3290.7,3289.9,0.30398]
[1736494246181,0.05037408,3290.5,3289.9,0.30398]
[1736494246388,1.436,3290.5,3289.9,0.30398]
[1736494246585,1.436,3290.5,3289.8,3.2078]
[1736494246975,0.30396,3290.2,3289.8,3.2078]
[1736494247176,3.2078,3290.7,3289.8,3.2078]
[1736494247382,3.2078,3291.7,3290.6,3.2078]
[1736494247583,0.05036219,3291.6,3291.0,3.2078]
[1736494247783,0.30387,3291.1,3291.0,3.2078]
[1736494247982,6.27252274,3291.7,3290.6,3.2078]
[1736494248183,0.4686,3291.5,3290.6,3.2078]
[1736494248380,1.48636154,3291.4,3290.6,3.2078]
[1736494248586,0.05036154,3291.3,3290.6,3.2078]
[1736494248888,0.30388,3291.0,3290.6,3.2078]
[1736494249388,0.30387,3291.1,3290.6,3.2078]
[1736494249577,0.30388,3290.9,3290.6,3.2078]
[1736494249778,1.436,3291.4,3290.6,3.2078]
[1736494250084,3.2078,3291.0,3290.2,3.2078]
[1736494250391,0.30393,3290.4,3290.2,3.2078]
[1736494250589,1.73992,3290.5,3290.2,3.2078]
[1736494250786,3.2078,3291.8,3290.9,0.30388]
[1736494250989,0.05036402,3291.7,3291.2,3.2078]
[1736494251183,0.30385,3291.3,3291.2,3.2078]
[1736494251490,0.30382,3291.7,3291.2,3.2078]
[1736494251685,0.4324,3292.1,3291.2,3.2078]
[1736494251882,0.05034924,3292.0,3291.2,3.2078]
[1736494252187,1.436,3292.5,3291.8,3.2078]
[1736494252387,0.30379,3292.0,3291.8,3.2078]
[1736494252583,0.30379,3292.0,3290.4,2.62622274]
[1736494252584,0.30381,3291.8,3291.4,3.2078]
[1736494252884,3.2078,3292.2,3291.4,3.2078]
[1736494252885,0.30382,3291.6,3291.4,3.2078]
[1736494253084,1.436,3291.9,3291.4,3.2078]
[1736494253590,3.2078,3292.2,3291.4,3.2078]
[1736494253791,1.4853504,3292.1,3291.4,3.2078]
[1736494253987,0.30383,3291.5,3291.4,3.2078]
[1736494255291,0.30383,3291.5,3290.0,40.8]
[1736494255292,3.2078,3291.6,3290.9,3.2078]
[1736494255491,0.30388,3291.0,3290.9,3.2078]
[1736494255692,0.050359,3291.5,3290.8,3.2078]
[1736494255693,0.30389,3290.9,3290.8,3.2078]
[1736494256488,0.30393,3290.5,3290.4,3.2078]
[1736494256797,1.435,3291.1,3290.4,3.2078]
[1736494257186,1.435,3291.2,3290.9,3.2078]
[1736494257396,0.30383,3291.5,3290.9,3.2078]
[1736494257590,0.30383,3291.5,3291.4,3.2078]
[1736494257893,0.30387,3291.2,3291.0,3.2078]
[1736494258292,1.435,3291.7,3291.0,3.2078]
[1736494258488,0.30387,3291.1,3291.0,3.2078]
[1736494259290,1.435,3291.7,3291.0,3.2078]
[1736494259894,0.30384,3291.4,3291.0,3.2078]
[1736494260090,0.30385,3291.3,3291.0,3.2078]
[1736494260596,3.2078,3292.1,3291.0,3.2078]
[1736494260793,0.30379,3291.9,3291.4,3.2078]
[1736494260994,0.30383,3291.6,3291.4,3.2078]
[1736494261201,1.492,3292.0,3291.4,3.2078]
[1736494261496,0.30383,3291.5,3291.4,3.2078]
[1736494261691,1.492,3292.0,3291.4,3.2078]
[1736494261997,0.30383,3291.5,3291.4,3.2078]
[1736494263597,0.35418956,3291.5,3291.4,3.2078]
[1736494263792,0.30383,3291.5,3291.4,3.2078]
[1736494264595,4.6998,3292.0,3290.9,3.2078]
[1736494264794,3.2078,3291.6,3290.5,3.2078]
[1736494264994,0.30392,3290.6,3290.5,3.2078]
[1736494266294,1.491,3290.8,3290.1,3.2078]
[1736494266599,0.30395,3290.2,3290.1,3.2078]
[1736494266796,1.491,3290.8,3290.1,3.2078]
[1736494267099,0.30395,3290.3,3290.1,3.2078]
[1736494267395,0.30392,3290.7,3290.1,3.51176]
[1736494267700,0.30394,3290.4,3290.1,3.2078]
[1736494267902,0.30393,3290.5,3290.1,3.2078]
[1736494268399,1.491,3290.8,3290.1,3.2078]
[1736494268400,0.30394,3290.4,3290.1,3.2078]
[1736494268603,0.30395,3290.2,3290.1,3.2078]
[1736494269500,1.491,3290.8,3290.1,3.2078]
[1736494269699,0.30391,3290.7,3290.6,3.2078]
[1736494270800,0.30395,3290.3,3290.2,3.2078]
[1736494273703,3.2078,3290.3,3289.8,40.8]
[1736494274000,3.2078,3290.3,3289.4,3.2078]
[1736494274199,0.304,3289.7,3289.4,3.2078]
[1736494274599,0.304,3289.7,3289.5,40.8]
[1736494275205,0.30401,3289.6,3289.5,40.8]
[1736494275403,1.492,3290.3,3289.5,40.8]
[1736494275703,0.30397,3290.0,3289.9,3.2078]
[1736494278598,0.30404,3289.2,3289.1,3.2078]
[1736494279303,0.30404,3289.3,3289.1,3.2078]
[1736494279506,1.492,3289.4,3289.1,3.2078]
[1736494279808,0.30404,3289.2,3289.1,3.2078]
[1736494283009,3.2078,3289.3,3288.7,40.8]
[1736494283207,0.30408,3288.8,3288.7,40.8]
[1736494283910,3.9679,3289.3,3288.5,3.2078]
[1736494284110,0.3041,3288.6,3288.5,3.2078]
[1736494284613,3.9679,3289.3,3288.5,44.0078]
[1736494284815,0.3041,3288.6,3288.5,44.0078]